[Event "*** Titled Tuesday Blitz"]
[Site "Chess.com"]
[Date "2021.03.02"]
[Round "3"]
[White "WilliamSchill"]
[Black "Grammnik"]
[Result "0-1"]
[WhiteElo "2107"]
[BlackElo "2378"]
[TimeControl "180+1"]
[EndTime "10:26:57 PST"]
[Termination "Grammnik won on time"]

1. e4 {[%clk 0:03:00.9]} 1... c5 {[%clk 0:02:58.8]} 2. Nf3 {[%clk 0:03:00]} 2...
d6 {[%clk 0:02:58.4]} 3. d4 {[%clk 0:02:59.8]} 3... cxd4 {[%clk 0:02:58.3]} 4.
Nxd4 {[%clk 0:02:59.9]} 4... Nf6 {[%clk 0:02:58.8]} 5. Nc3 {[%clk 0:03:00]} 5...
a6 {[%clk 0:02:58.5]} 6. Bg5 {[%clk 0:02:59.9]} 6... e6 {[%clk 0:02:58.4]} 7. f4
{[%clk 0:02:59.7]} 7... Qb6 {[%clk 0:02:57.6]} 8. Qd2 {[%clk 0:02:59.4]} 8...
Qxb2 {[%clk 0:02:57.2]} 9. Rb1 {[%clk 0:02:59.6]} 9... Qa3 {[%clk 0:02:57.2]}
10. e5 {[%clk 0:02:59.6]} 10... dxe5 {[%clk 0:02:56]} 11. fxe5 {[%clk
0:02:59.5]} 11... Nfd7 {[%clk 0:02:48]} 12. Be2 {[%clk 0:02:40.1]} 12... Qc5
{[%clk 0:02:32.1]} 13. O-O {[%clk 0:01:21.9]} 13... Nc6 {[%clk 0:02:30.5]} 14.
Be3 {[%clk 0:01:13.8]} 14... Nxd4 {[%clk 0:02:28]} 15. Bxd4 {[%clk 0:01:10.9]}
15... Qc7 {[%clk 0:02:27.4]} 16. Qf4 {[%clk 0:00:58.8]} 16... Nb8 {[%clk
0:02:02.8]} 17. Ne4 {[%clk 0:00:41.3]} 17... Nc6 {[%clk 0:01:53.4]} 18. Nd6+
{[%clk 0:00:25.1]} 18... Bxd6 {[%clk 0:01:51.2]} 19. exd6 {[%clk 0:00:25.2]}
19... Qd7 {[%clk 0:01:52.1]} 20. Bxg7 {[%clk 0:00:20.6]} 20... Rg8 {[%clk
0:01:52.1]} 21. Bf6 {[%clk 0:00:16.2]} 21... b5 {[%clk 0:01:49.6]} 22. Bh5
{[%clk 0:00:15.8]} 22... Bb7 {[%clk 0:01:44.6]} 23. Be7 {[%clk 0:00:15.8]} 23...
Nxe7 {[%clk 0:01:40.7]} 24. Qxf7+ {[%clk 0:00:12.7]} 24... Kd8 {[%clk
0:01:40.1]} 25. dxe7+ {[%clk 0:00:12.9]} 25... Kc7 {[%clk 0:01:37.9]} 26. e8=Q
{[%clk 0:00:05.9]} 26... Rgxe8 {[%clk 0:01:37.1]} 27. Qxd7+ {[%clk 0:00:05.5]}
27... Kxd7 {[%clk 0:01:37.2]} 28. Bxe8+ {[%clk 0:00:05.5]} 28... Kxe8 {[%clk
0:01:35]} 29. Rbe1 {[%clk 0:00:05.1]} 29... Bd5 {[%clk 0:01:34.1]} 30. a3 {[%clk
0:00:04.2]} 30... Rc8 {[%clk 0:01:34]} 31. Rf2 {[%clk 0:00:03.7]} 31... Rc3
{[%clk 0:01:33.3]} 0-1

[Event "*** Titled Tuesday Blitz"]
[Site "Chess.com"]
[Date "2021.03.02"]
[Round "3"]
[White "MerryPoppies"]
[Black "CM_rui"]
[Result "0-1"]
[WhiteElo "2141"]
[BlackElo "2353"]
[TimeControl "180+1"]
[EndTime "10:26:59 PST"]
[Termination "CM_rui won by resignation"]

1. d4 {[%clk 0:03:00.9]} 1... Nf6 {[%clk 0:02:59.2]} 2. c4 {[%clk 0:02:59.7]}
2... e6 {[%clk 0:02:59.5]} 3. Nc3 {[%clk 0:02:59.6]} 3... Bb4 {[%clk 0:02:59.9]}
4. Qc2 {[%clk 0:02:59.6]} 4... O-O {[%clk 0:02:59.7]} 5. Nf3 {[%clk 0:02:58.3]}
5... d6 {[%clk 0:03:00]} 6. e3 {[%clk 0:02:57.4]} 6... Nbd7 {[%clk 0:03:00.5]}
7. Bd3 {[%clk 0:02:53.8]} 7... Qe7 {[%clk 0:03:00.6]} 8. a3 {[%clk 0:02:53.2]}
8... Bxc3+ {[%clk 0:03:01]} 9. Qxc3 {[%clk 0:02:53.4]} 9... e5 {[%clk
0:03:01.9]} 10. e4 {[%clk 0:02:33]} 10... exd4 {[%clk 0:02:58.6]} 11. Qxd4
{[%clk 0:02:32.9]} 11... Nc5 {[%clk 0:02:59]} 12. O-O {[%clk 0:01:40]} 12... Nb3
{[%clk 0:02:58.4]} 13. Qc3 {[%clk 0:01:34.2]} 13... Nxa1 {[%clk 0:02:58.5]} 14.
Bg5 {[%clk 0:01:34.2]} 14... Bg4 {[%clk 0:02:46]} 15. Rxa1 {[%clk 0:01:29.6]}
15... h6 {[%clk 0:02:42.9]} 16. Bh4 {[%clk 0:01:28.8]} 16... Bxf3 {[%clk
0:02:41.5]} 17. gxf3 {[%clk 0:01:29.7]} 17... g5 {[%clk 0:02:40.4]} 18. Bg3
{[%clk 0:01:29.2]} 18... Nh5 {[%clk 0:02:35.8]} 19. Re1 {[%clk 0:01:27]} 19...
Nf4 {[%clk 0:02:25.5]} 20. Kh1 {[%clk 0:01:07.6]} 20... Qe5 {[%clk 0:02:19.1]}
21. Qd2 {[%clk 0:01:00.6]} 21... Kh8 {[%clk 0:02:12.6]} 22. Rg1 {[%clk
0:00:59.8]} 22... Qf6 {[%clk 0:02:10.3]} 23. Bxf4 {[%clk 0:00:56.2]} 23... gxf4
{[%clk 0:02:05]} 24. Rg4 {[%clk 0:00:55.7]} 24... Rg8 {[%clk 0:02:00.5]} 25.
Qxf4 {[%clk 0:00:52.5]} 25... Qxf4 {[%clk 0:01:53]} 26. Rxf4 {[%clk 0:00:53.4]}
26... Rg7 {[%clk 0:01:52.9]} 27. Rg4 {[%clk 0:00:51.4]} 27... Rag8 {[%clk
0:01:51.1]} 28. h3 {[%clk 0:00:51.3]} 28... h5 {[%clk 0:01:48.9]} 29. Rxg7
{[%clk 0:00:51]} 29... Rxg7 {[%clk 0:01:49.8]} 30. Kh2 {[%clk 0:00:51.4]} 30...
h4 {[%clk 0:01:49.1]} 31. f4 {[%clk 0:00:51]} 31... Kg8 {[%clk 0:01:44]} 32. Be2
{[%clk 0:00:51.1]} 32... f6 {[%clk 0:01:41.6]} 33. Bg4 {[%clk 0:00:51.1]} 33...
Kf7 {[%clk 0:01:42]} 34. Kg2 {[%clk 0:00:48.3]} 34... f5 {[%clk 0:01:38.7]} 35.
exf5 {[%clk 0:00:47.7]} 35... Kf6 {[%clk 0:01:39.4]} 36. Kf3 {[%clk 0:00:48.2]}
36... Re7 {[%clk 0:01:39.1]} 37. Bh5 {[%clk 0:00:45.1]} 37... Kxf5 {[%clk
0:01:38.3]} 38. Bg4+ {[%clk 0:00:45.2]} 38... Kf6 {[%clk 0:01:38.7]} 39. f5
{[%clk 0:00:45.4]} 39... Re5 {[%clk 0:01:38.2]} 40. Kf4 {[%clk 0:00:44.9]} 40...
a5 {[%clk 0:01:34.5]} 41. b4 {[%clk 0:00:44.4]} 41... a4 {[%clk 0:01:31.3]} 42.
Kf3 {[%clk 0:00:41.3]} 42... Re1 {[%clk 0:01:28.8]} 43. Bh5 {[%clk 0:00:38.3]}
43... Kxf5 {[%clk 0:01:27.6]} 44. Be8 {[%clk 0:00:38.2]} 44... Ra1 {[%clk
0:01:26.5]} 45. Kg2 {[%clk 0:00:38.1]} 45... Rxa3 {[%clk 0:01:26.2]} 0-1

[Event "*** Titled Tuesday Blitz"]
[Site "Chess.com"]
[Date "2021.03.02"]
[Round "3"]
[White "Camels1981"]
[Black "zurzan"]
[Result "1-0"]
[WhiteElo "2322"]
[BlackElo "2062"]
[TimeControl "180+1"]
[EndTime "10:27:06 PST"]
[Termination "Camels1981 won on time"]

1. e4 {[%clk 0:03:00.9]} 1... Nf6 {[%clk 0:02:59.2]} 2. e5 {[%clk 0:03:00.3]}
2... Nd5 {[%clk 0:02:59.4]} 3. Nc3 {[%clk 0:03:00.2]} 3... Nxc3 {[%clk
0:02:58.6]} 4. dxc3 {[%clk 0:03:01.1]} 4... g6 {[%clk 0:02:59.1]} 5. Bf4 {[%clk
0:03:00.3]} 5... Bg7 {[%clk 0:02:59.2]} 6. Qf3 {[%clk 0:02:58.7]} 6... O-O
{[%clk 0:02:57.5]} 7. O-O-O {[%clk 0:02:59.1]} 7... d6 {[%clk 0:02:56.7]} 8. h4
{[%clk 0:02:59.2]} 8... h5 {[%clk 0:02:52.2]} 9. Be2 {[%clk 0:02:55.2]} 9... Bg4
{[%clk 0:02:51.5]} 10. Qxb7 {[%clk 0:02:54.6]} 10... Bxe2 {[%clk 0:02:49]} 11.
Nxe2 {[%clk 0:02:55.5]} 11... Nd7 {[%clk 0:02:46.1]} 12. g4 {[%clk 0:02:51.5]}
12... dxe5 {[%clk 0:02:44.5]} 13. Be3 {[%clk 0:02:45.9]} 13... Qb8 {[%clk
0:01:50]} 14. Qc6 {[%clk 0:02:39.3]} 14... Nf6 {[%clk 0:01:48.3]} 15. gxh5
{[%clk 0:02:37.3]} 15... Nxh5 {[%clk 0:01:48.2]} 16. Ng3 {[%clk 0:02:37.7]}
16... Nf4 {[%clk 0:01:46.2]} 17. h5 {[%clk 0:02:32.4]} 17... Qe8 {[%clk
0:01:12.3]} 18. Qc4 {[%clk 0:02:20.8]} 18... g5 {[%clk 0:00:51.3]} 19. h6 {[%clk
0:02:18.5]} 19... Bf6 {[%clk 0:00:46.8]} 20. Ne4 {[%clk 0:02:13.9]} 20... Kh8
{[%clk 0:00:08.8]} 21. Rdg1 {[%clk 0:02:02.1]} 21... Rg8 {[%clk 0:00:07.8]} 22.
Qa6 {[%clk 0:01:43.8]} 22... Rd8 {[%clk 0:00:06.7]} 23. Nxf6 {[%clk 0:01:42.1]}
23... exf6 {[%clk 0:00:06.6]} 24. Qxf6+ {[%clk 0:01:41.5]} 24... Kh7 {[%clk
0:00:06.5]} 25. Rxg5 {[%clk 0:01:33.9]} 25... Ne2+ {[%clk 0:00:06.1]} 26. Kb1
{[%clk 0:01:29.5]} 26... Rxg5 {[%clk 0:00:06]} 27. Qxg5 {[%clk 0:01:27.3]} 27...
Qg8 {[%clk 0:00:05.6]} 28. Qxe5 {[%clk 0:01:25.9]} 28... Re8 {[%clk 0:00:03.7]}
29. Qxc7 {[%clk 0:01:23.5]} 1-0

[Event "*** Titled Tuesday Blitz"]
[Site "Chess.com"]
[Date "2021.03.02"]
[Round "3"]
[White "Fighter008"]
[Black "sergoy"]
[Result "1-0"]
[WhiteElo "2635"]
[BlackElo "2835"]
[TimeControl "180+1"]
[EndTime "10:27:07 PST"]
[Termination "Fighter008 won by checkmate"]

1. e4 {[%clk 0:03:00.9]} 1... c5 {[%clk 0:02:58.5]} 2. Nf3 {[%clk 0:03:00.5]}
2... d6 {[%clk 0:02:57.5]} 3. d4 {[%clk 0:03:00.5]} 3... cxd4 {[%clk 0:02:58.4]}
4. Nxd4 {[%clk 0:03:01.3]} 4... Nf6 {[%clk 0:02:58.4]} 5. Nc3 {[%clk 0:03:01.1]}
5... a6 {[%clk 0:02:58.6]} 6. Be3 {[%clk 0:03:00.8]} 6... e5 {[%clk 0:02:58.7]}
7. Nb3 {[%clk 0:03:00.9]} 7... Be6 {[%clk 0:02:58.6]} 8. Qd2 {[%clk 0:03:00.5]}
8... Be7 {[%clk 0:02:58.6]} 9. O-O-O {[%clk 0:03:00.2]} 9... O-O {[%clk
0:02:58.9]} 10. f4 {[%clk 0:03:00.5]} 10... b5 {[%clk 0:02:53.6]} 11. f5 {[%clk
0:03:00.6]} 11... Bc4 {[%clk 0:02:53.5]} 12. g4 {[%clk 0:03:01]} 12... h6 {[%clk
0:02:48.5]} 13. h4 {[%clk 0:02:52.7]} 13... Nxg4 {[%clk 0:02:36.2]} 14. Rg1
{[%clk 0:02:51.3]} 14... h5 {[%clk 0:02:35.5]} 15. Bh3 {[%clk 0:02:32.5]} 15...
Nxe3 {[%clk 0:02:32.8]} 16. Qxe3 {[%clk 0:02:32.2]} 16... Bxh4 {[%clk
0:02:32.7]} 17. Nd2 {[%clk 0:02:19.2]} 17... Nd7 {[%clk 0:02:22.4]} 18. Nxc4
{[%clk 0:02:06.4]} 18... bxc4 {[%clk 0:02:21.9]} 19. Qh6 {[%clk 0:01:55]} 19...
Qf6 {[%clk 0:02:01.1]} 20. Qxh5 {[%clk 0:01:54.5]} 20... Nb6 {[%clk 0:01:59.1]}
21. Rg2 {[%clk 0:01:35.5]} 21... Rfd8 {[%clk 0:01:07.2]} 22. Rdg1 {[%clk
0:01:29.6]} 22... Kf8 {[%clk 0:01:07.2]} 23. Rxg7 {[%clk 0:01:17.6]} 23... Bf2
{[%clk 0:01:07]} 24. R1g6 {[%clk 0:00:56.4]} 24... Be3+ {[%clk 0:00:34.4]} 25.
Kd1 {[%clk 0:00:55.3]} 25... fxg6 {[%clk 0:00:28.3]} 26. Qh8# {[%clk 0:00:54.3]}
1-0

[Event "*** Titled Tuesday Blitz"]
[Site "Chess.com"]
[Date "2021.03.02"]
[Round "3"]
[White "bylavochka"]
[Black "mjray79"]
[Result "1-0"]
[WhiteElo "2192"]
[BlackElo "2468"]
[TimeControl "180+1"]
[EndTime "10:27:09 PST"]
[Termination "bylavochka won by checkmate"]

1. e4 {[%clk 0:03:00.9]} 1... e5 {[%clk 0:02:59.9]} 2. Nf3 {[%clk 0:03:00.6]}
2... Nc6 {[%clk 0:03:00.4]} 3. Nc3 {[%clk 0:03:00.9]} 3... Nf6 {[%clk
0:02:59.8]} 4. g3 {[%clk 0:02:58.3]} 4... g6 {[%clk 0:02:54.3]} 5. Bg2 {[%clk
0:02:58.2]} 5... Bg7 {[%clk 0:02:54]} 6. O-O {[%clk 0:02:58.7]} 6... O-O {[%clk
0:02:53.6]} 7. d3 {[%clk 0:02:59.2]} 7... h6 {[%clk 0:02:49.9]} 8. Ne1 {[%clk
0:02:53.8]} 8... d6 {[%clk 0:02:42.5]} 9. h3 {[%clk 0:02:50.2]} 9... Nh7 {[%clk
0:02:37.2]} 10. f4 {[%clk 0:02:43.5]} 10... exf4 {[%clk 0:02:36.9]} 11. Bxf4
{[%clk 0:02:39.1]} 11... Ng5 {[%clk 0:02:33.1]} 12. Kh2 {[%clk 0:02:34.2]} 12...
Bd7 {[%clk 0:02:24]} 13. Rb1 {[%clk 0:02:31.8]} 13... Qc8 {[%clk 0:02:10.7]} 14.
Bxg5 {[%clk 0:02:02.9]} 14... hxg5 {[%clk 0:02:11.6]} 15. Nd5 {[%clk 0:02:03.7]}
15... f5 {[%clk 0:02:11.9]} 16. Nf3 {[%clk 0:01:47.1]} 16... fxe4 {[%clk
0:01:48.4]} 17. Nxg5 {[%clk 0:01:42.5]} 17... exd3 {[%clk 0:01:43.1]} 18. Qxd3
{[%clk 0:01:37.3]} 18... Bf5 {[%clk 0:01:42.9]} 19. Qc4 {[%clk 0:01:03.2]} 19...
Be6 {[%clk 0:01:18.1]} 20. Qh4 {[%clk 0:00:47.5]} 20... Rxf1 {[%clk 0:00:49.5]}
21. Qh7+ {[%clk 0:00:43.9]} 21... Kf8 {[%clk 0:00:48.6]} 22. Rxf1+ {[%clk
0:00:41]} 22... Bf5 {[%clk 0:00:47.7]} 23. Qxg6 {[%clk 0:00:36.9]} 23... Nd4
{[%clk 0:00:36.3]} 24. Qf7# {[%clk 0:00:29.1]} 1-0

[Event "*** Titled Tuesday Blitz"]
[Site "Chess.com"]
[Date "2021.03.02"]
[Round "3"]
[White "GarciaIsaac"]
[Black "MillyNeuf"]
[Result "1-0"]
[WhiteElo "2569"]
[BlackElo "2275"]
[TimeControl "180+1"]
[EndTime "10:27:09 PST"]
[Termination "GarciaIsaac won by resignation"]

1. d4 {[%clk 0:02:59]} 1... Nf6 {[%clk 0:02:55.6]} 2. Nf3 {[%clk 0:02:57.7]}
2... d5 {[%clk 0:02:55.5]} 3. Bf4 {[%clk 0:02:56.5]} 3... c5 {[%clk 0:02:54.5]}
4. e3 {[%clk 0:02:55.8]} 4... Nc6 {[%clk 0:02:49.1]} 5. Nbd2 {[%clk 0:02:55]}
5... e6 {[%clk 0:02:44.1]} 6. c3 {[%clk 0:02:53.5]} 6... Bd6 {[%clk 0:02:33.4]}
7. Ne5 {[%clk 0:02:52.6]} 7... O-O {[%clk 0:02:31.4]} 8. Bb5 {[%clk 0:02:48]}
8... Qc7 {[%clk 0:02:21.1]} 9. Ndf3 {[%clk 0:02:29.2]} 9... a6 {[%clk
0:02:13.3]} 10. Bxc6 {[%clk 0:02:27.3]} 10... bxc6 {[%clk 0:02:09.9]} 11. Qa4
{[%clk 0:02:26.1]} 11... cxd4 {[%clk 0:02:01.3]} 12. cxd4 {[%clk 0:02:24.3]}
12... c5 {[%clk 0:01:54.4]} 13. dxc5 {[%clk 0:02:19.7]} 13... Qxc5 {[%clk
0:01:47.8]} 14. O-O {[%clk 0:02:17.6]} 14... Bxe5 {[%clk 0:01:33.9]} 15. Nxe5
{[%clk 0:02:05.5]} 15... Qb5 {[%clk 0:01:33.6]} 16. Qa3 {[%clk 0:02:00.9]} 16...
Rb8 {[%clk 0:01:28.7]} 17. b3 {[%clk 0:01:56.2]} 17... Bb7 {[%clk 0:01:18.5]}
18. Rac1 {[%clk 0:01:44.3]} 18... Rbc8 {[%clk 0:00:46.6]} 19. h3 {[%clk
0:01:21.3]} 19... a5 {[%clk 0:00:40.8]} 20. Rxc8 {[%clk 0:01:11]} 20... Rxc8
{[%clk 0:00:41.7]} 21. Rc1 {[%clk 0:01:11.3]} 21... Rxc1+ {[%clk 0:00:10.9]} 22.
Qxc1 {[%clk 0:01:12]} 22... h6 {[%clk 0:00:11.5]} 23. Qc7 {[%clk 0:01:09.3]} 1-0

[Event "*** Titled Tuesday Blitz"]
[Site "Chess.com"]
[Date "2021.03.02"]
[Round "3"]
[White "BanjoKazooieN64"]
[Black "konradrutkowski"]
[Result "0-1"]
[WhiteElo "2546"]
[BlackElo "2394"]
[TimeControl "180+1"]
[EndTime "10:27:14 PST"]
[Termination "konradrutkowski won by resignation"]

1. e4 {[%clk 0:03:00.9]} 1... e5 {[%clk 0:02:59.4]} 2. Nf3 {[%clk 0:02:41.4]}
2... Nc6 {[%clk 0:02:59.1]} 3. Bc4 {[%clk 0:02:41.3]} 3... Nf6 {[%clk
0:02:58.7]} 4. Ng5 {[%clk 0:02:41.5]} 4... d5 {[%clk 0:02:58.7]} 5. exd5 {[%clk
0:02:42.4]} 5... Na5 {[%clk 0:02:58.5]} 6. Bb5+ {[%clk 0:02:43.1]} 6... Bd7
{[%clk 0:02:56.5]} 7. Qe2 {[%clk 0:02:42.7]} 7... Be7 {[%clk 0:02:54.7]} 8.
Bxd7+ {[%clk 0:02:40.9]} 8... Qxd7 {[%clk 0:02:43.5]} 9. Qxe5 {[%clk 0:02:39.9]}
9... O-O {[%clk 0:02:33.9]} 10. O-O {[%clk 0:02:39]} 10... Nxd5 {[%clk
0:02:27.3]} 11. Nc3 {[%clk 0:02:30.1]} 11... Nxc3 {[%clk 0:01:59.6]} 12. dxc3
{[%clk 0:02:30.1]} 12... Nc6 {[%clk 0:01:53.9]} 13. Qe4 {[%clk 0:02:26.3]} 13...
Bxg5 {[%clk 0:01:43.3]} 14. Bxg5 {[%clk 0:02:27.2]} 14... Rfe8 {[%clk
0:01:42.9]} 15. Qd3 {[%clk 0:01:43.3]} 15... Qg4 {[%clk 0:01:39.3]} 16. Be3
{[%clk 0:00:49.9]} 16... Ne5 {[%clk 0:01:35.3]} 17. Qd1 {[%clk 0:00:33.5]} 17...
Qh4 {[%clk 0:01:30]} 18. Bd4 {[%clk 0:00:31.1]} 18... Rad8 {[%clk 0:01:21.6]}
19. Re1 {[%clk 0:00:25.5]} 19... c5 {[%clk 0:01:08.1]} 20. Bxe5 {[%clk
0:00:12.2]} 20... Rxd1 {[%clk 0:01:06.9]} 21. Raxd1 {[%clk 0:00:13.1]} 21... h6
{[%clk 0:01:02.1]} 22. Bg3 {[%clk 0:00:11.3]} 22... Rxe1+ {[%clk 0:01:00.9]} 23.
Rxe1 {[%clk 0:00:12.2]} 23... Qf6 {[%clk 0:00:58.7]} 24. Kf1 {[%clk 0:00:11.2]}
24... Qa6+ {[%clk 0:00:56.6]} 25. Re2 {[%clk 0:00:10.1]} 25... Qxa2 {[%clk
0:00:56.8]} 0-1

[Event "*** Titled Tuesday Blitz"]
[Site "Chess.com"]
[Date "2021.03.02"]
[Round "3"]
[White "BigAl"]
[Black "GoltsevDmitry2000"]
[Result "1-0"]
[WhiteElo "2534"]
[BlackElo "2745"]
[TimeControl "180+1"]
[EndTime "10:27:16 PST"]
[Termination "BigAl won by checkmate"]

1. Nf3 {[%clk 0:03:00.9]} 1... d5 {[%clk 0:02:59.4]} 2. g3 {[%clk 0:03:01.2]}
2... c6 {[%clk 0:02:59.1]} 3. Bg2 {[%clk 0:03:01.9]} 3... Bg4 {[%clk 0:02:59.7]}
4. O-O {[%clk 0:03:02.6]} 4... Nd7 {[%clk 0:02:59.9]} 5. d3 {[%clk 0:03:03.2]}
5... Ngf6 {[%clk 0:03:00.2]} 6. c4 {[%clk 0:03:03.8]} 6... e6 {[%clk 0:02:59.9]}
7. Be3 {[%clk 0:03:04.4]} 7... Bd6 {[%clk 0:02:59.2]} 8. Qb3 {[%clk 0:03:04.5]}
8... b6 {[%clk 0:02:56.3]} 9. Nc3 {[%clk 0:02:53]} 9... O-O {[%clk 0:02:53.9]}
10. cxd5 {[%clk 0:02:47.5]} 10... Nxd5 {[%clk 0:02:49.9]} 11. Nxd5 {[%clk
0:02:18.3]} 11... cxd5 {[%clk 0:02:32.9]} 12. Qa4 {[%clk 0:02:14]} 12... Bh5
{[%clk 0:02:29.7]} 13. Rfc1 {[%clk 0:02:12.1]} 13... Nc5 {[%clk 0:02:20.7]} 14.
Qd1 {[%clk 0:02:10.7]} 14... Rc8 {[%clk 0:02:17.4]} 15. Nd4 {[%clk 0:01:53.7]}
15... Qd7 {[%clk 0:02:12.6]} 16. Bh3 {[%clk 0:01:31.1]} 16... Rc7 {[%clk
0:02:05.7]} 17. b4 {[%clk 0:01:29.2]} 17... Na4 {[%clk 0:01:55.6]} 18. Rxc7
{[%clk 0:01:28.6]} 18... Bxc7 {[%clk 0:01:56.5]} 19. Rc1 {[%clk 0:01:26.3]}
19... Bd6 {[%clk 0:01:49.8]} 20. Nc6 {[%clk 0:01:26.1]} 20... b5 {[%clk
0:01:34.8]} 21. Nxa7 {[%clk 0:01:21.5]} 21... Bxb4 {[%clk 0:01:30.8]} 22. Nc6
{[%clk 0:01:16.4]} 22... Nc3 {[%clk 0:01:28.8]} 23. Rxc3 {[%clk 0:01:03.2]}
23... Bxc3 {[%clk 0:01:29.7]} 24. Nd4 {[%clk 0:01:01.7]} 24... Ra8 {[%clk
0:01:15]} 25. Qb3 {[%clk 0:00:59.6]} 25... Bxd4 {[%clk 0:01:14]} 26. Bxd4 {[%clk
0:00:59.5]} 26... Bxe2 {[%clk 0:01:14.5]} 27. Qb2 {[%clk 0:00:59.5]} 27... Bxd3
{[%clk 0:01:04.2]} 28. Bxg7 {[%clk 0:00:59.5]} 28... Ra4 {[%clk 0:01:04.4]} 29.
Bh6 {[%clk 0:00:53.6]} 29... d4 {[%clk 0:00:58.1]} 30. Qd2 {[%clk 0:00:52]}
30... Bg6 {[%clk 0:00:50.4]} 31. Qg5 {[%clk 0:00:52]} 31... f5 {[%clk
0:00:48.2]} 32. Qf6 {[%clk 0:00:48.7]} 32... d3 {[%clk 0:00:42]} 33. Qf8# {[%clk
0:00:47.2]} 1-0

[Event "*** Titled Tuesday Blitz"]
[Site "Chess.com"]
[Date "2021.03.02"]
[Round "3"]
[White "AlexeiShirov"]
[Black "Shuvalov"]
[Result "1-0"]
[WhiteElo "2823"]
[BlackElo "2535"]
[TimeControl "180+1"]
[EndTime "10:27:18 PST"]
[Termination "AlexeiShirov won by checkmate"]

1. e4 {[%clk 0:03:00.9]} 1... e6 {[%clk 0:01:15.1]} 2. d4 {[%clk 0:03:00.4]}
2... d5 {[%clk 0:01:15.1]} 3. e5 {[%clk 0:03:00.3]} 3... c5 {[%clk 0:01:15]} 4.
c3 {[%clk 0:03:00.3]} 4... Nc6 {[%clk 0:01:15.3]} 5. Nf3 {[%clk 0:03:00.2]} 5...
Qb6 {[%clk 0:01:15.8]} 6. a3 {[%clk 0:02:56.5]} 6... Bd7 {[%clk 0:01:14.8]} 7.
b4 {[%clk 0:02:53.4]} 7... cxd4 {[%clk 0:01:14.8]} 8. cxd4 {[%clk 0:02:52.7]}
8... Rc8 {[%clk 0:01:14.9]} 9. Bb2 {[%clk 0:02:49.1]} 9... Nge7 {[%clk
0:01:13.9]} 10. Nc3 {[%clk 0:02:44.9]} 10... Na5 {[%clk 0:01:13.5]} 11. Nd2
{[%clk 0:02:39.8]} 11... Nc4 {[%clk 0:01:07.2]} 12. Bxc4 {[%clk 0:02:29.5]}
12... dxc4 {[%clk 0:01:08.1]} 13. Nce4 {[%clk 0:02:24.5]} 13... Nd5 {[%clk
0:01:03.3]} 14. Rc1 {[%clk 0:02:21.3]} 14... Qa6 {[%clk 0:00:56.4]} 15. O-O
{[%clk 0:02:15.8]} 15... b5 {[%clk 0:00:50.1]} 16. Qg4 {[%clk 0:02:08.9]} 16...
Bc6 {[%clk 0:00:46]} 17. Qg3 {[%clk 0:02:06.9]} 17... Qb7 {[%clk 0:00:40.9]} 18.
Rfe1 {[%clk 0:01:59.2]} 18... Qd7 {[%clk 0:00:28.7]} 19. Nc5 {[%clk 0:01:51.9]}
19... Qd8 {[%clk 0:00:19.3]} 20. Nde4 {[%clk 0:01:50.5]} 20... a5 {[%clk
0:00:18.3]} 21. bxa5 {[%clk 0:01:46.7]} 21... Qxa5 {[%clk 0:00:17.8]} 22. f4
{[%clk 0:01:23.9]} 22... Qa8 {[%clk 0:00:12.2]} 23. f5 {[%clk 0:01:23.1]} 23...
exf5 {[%clk 0:00:12]} 24. Nd6+ {[%clk 0:01:22.5]} 24... Bxd6 {[%clk 0:00:11.6]}
25. exd6+ {[%clk 0:01:21.4]} 25... Kf8 {[%clk 0:00:12.1]} 26. d7 {[%clk
0:01:21]} 26... Rd8 {[%clk 0:00:11.8]} 27. Qd6+ {[%clk 0:01:18.8]} 27... Kg8
{[%clk 0:00:12.1]} 28. Re5 {[%clk 0:01:14]} 28... h5 {[%clk 0:00:11.5]} 29. Rce1
{[%clk 0:01:11.8]} 29... Rh6 {[%clk 0:00:11.6]} 30. Re8+ {[%clk 0:01:10.1]}
30... Kh7 {[%clk 0:00:12]} 31. Qf8 {[%clk 0:01:09]} 31... Rg6 {[%clk 0:00:09.3]}
32. Qh8# {[%clk 0:01:08.1]} 1-0

[Event "*** Titled Tuesday Blitz"]
[Site "Chess.com"]
[Date "2021.03.02"]
[Round "3"]
[White "redblizzard"]
[Black "ShimanovAlex"]
[Result "0-1"]
[WhiteElo "2457"]
[BlackElo "2800"]
[TimeControl "180+1"]
[EndTime "10:27:18 PST"]
[Termination "ShimanovAlex won by resignation"]

1. e4 {[%clk 0:02:57.9]} 1... b6 {[%clk 0:03:00.9]} 2. d4 {[%clk 0:02:57.1]}
2... Bb7 {[%clk 0:03:01.5]} 3. Bd3 {[%clk 0:02:57.1]} 3... e6 {[%clk 0:03:02.1]}
4. Qe2 {[%clk 0:02:56.8]} 4... Nf6 {[%clk 0:02:55.6]} 5. Nf3 {[%clk 0:02:49.1]}
5... d5 {[%clk 0:02:50.5]} 6. e5 {[%clk 0:02:42.9]} 6... Nfd7 {[%clk 0:02:50.5]}
7. O-O {[%clk 0:02:38.4]} 7... c5 {[%clk 0:02:49.8]} 8. c3 {[%clk 0:02:37.4]}
8... Nc6 {[%clk 0:02:50.3]} 9. a3 {[%clk 0:02:24.9]} 9... Be7 {[%clk 0:02:50.3]}
10. Nbd2 {[%clk 0:02:24.9]} 10... g5 {[%clk 0:02:49.7]} 11. h3 {[%clk
0:02:20.6]} 11... h5 {[%clk 0:02:48.7]} 12. Nh2 {[%clk 0:01:54.7]} 12... cxd4
{[%clk 0:02:47.2]} 13. cxd4 {[%clk 0:01:55.6]} 13... Nxd4 {[%clk 0:02:47.2]} 14.
Qd1 {[%clk 0:01:56.2]} 14... Nxe5 {[%clk 0:02:43.8]} 15. Bb1 {[%clk 0:01:52.2]}
15... Ndc6 {[%clk 0:02:28.6]} 16. Re1 {[%clk 0:01:45.9]} 16... Qc7 {[%clk
0:02:27.1]} 17. b4 {[%clk 0:01:41.6]} 17... Bf6 {[%clk 0:02:21.8]} 18. Ra2
{[%clk 0:01:41.6]} 18... O-O-O {[%clk 0:02:10.8]} 19. Nb3 {[%clk 0:01:31]} 19...
Nc4 {[%clk 0:02:08.1]} 20. Bd3 {[%clk 0:01:26.6]} 20... g4 {[%clk 0:02:06.2]}
21. b5 {[%clk 0:01:15.9]} 21... N6e5 {[%clk 0:02:04]} 22. Bf4 {[%clk 0:01:07.6]}
22... Nf3+ {[%clk 0:01:47.9]} 23. Qxf3 {[%clk 0:01:07.6]} 23... gxf3 {[%clk
0:01:48.1]} 24. Bxc7 {[%clk 0:01:07.6]} 24... Kxc7 {[%clk 0:01:49]} 25. Nxf3
{[%clk 0:01:04.7]} 25... Kb8 {[%clk 0:01:48.9]} 26. Nbd4 {[%clk 0:01:01.7]}
26... Rc8 {[%clk 0:01:47.9]} 27. a4 {[%clk 0:00:57.4]} 27... e5 {[%clk
0:01:37.1]} 28. Nc6+ {[%clk 0:00:52.1]} 28... Bxc6 {[%clk 0:01:36.9]} 29. bxc6
{[%clk 0:00:53]} 29... Rxc6 {[%clk 0:01:36.2]} 30. Bxc4 {[%clk 0:00:53.4]} 30...
dxc4 {[%clk 0:01:34.4]} 31. Nxe5 {[%clk 0:00:54.3]} 31... Rc7 {[%clk 0:01:23.5]}
32. Rc2 {[%clk 0:00:44.6]} 32... c3 {[%clk 0:01:21]} 33. g4 {[%clk 0:00:30.1]}
33... hxg4 {[%clk 0:01:19.3]} 34. hxg4 {[%clk 0:00:31]} 34... Rd8 {[%clk
0:01:18.2]} 35. f4 {[%clk 0:00:25.3]} 35... Rd4 {[%clk 0:01:17]} 36. f5 {[%clk
0:00:19.7]} 36... Bxe5 {[%clk 0:01:15]} 37. Rxe5 {[%clk 0:00:20.6]} 37... Rxg4+
{[%clk 0:01:15.6]} 38. Kf2 {[%clk 0:00:21.2]} 38... Rxa4 {[%clk 0:01:16.4]} 39.
f6 {[%clk 0:00:20.3]} 39... Rf4+ {[%clk 0:01:16.1]} 40. Ke3 {[%clk 0:00:20.8]}
40... Rxf6 {[%clk 0:01:17]} 0-1